bitfinex-derivatives/quotes_ETHF0:USTF0_20250115
["timestamp","ask_amount","ask_price","bid_price","bid_amount"]
[1736956709045,3.80672,3339.2,3339.1,0.59894]
[1736956709246,3.2078,3339.2,3339.1,40.59894]
[1736956710054,3.80672,3339.2,3339.1,40.59894]
[1736956710254,3.2078,3339.2,3339.1,40.59894]
[1736956710757,3.2078,3339.2,3338.9,1.397]
[1736956710952,0.59895,3339.1,3339.0,0.59895]
[1736956711155,0.59896,3339.0,3338.9,1.99596]
[1736956711449,0.59896,3339.0,3338.9,1.397]
[1736956712957,0.59899,3338.8,3338.7,3.80679]
[1736956713152,3.2078,3339.2,3338.7,3.2078]
[1736956713352,3.2078,3339.2,3339.1,0.59894]
[1736956713952,3.80672,3339.2,3339.1,0.59894]
[1736956714248,3.80672,3339.2,3338.7,3.2078]
[1736956714249,0.59896,3339.0,3338.9,0.59896]
[1736956714651,3.2078,3339.2,3338.7,3.2078]
[1736956715354,0.59894,3339.1,3339.0,0.59894]
[1736956715757,3.2078,3339.2,3338.7,3.2078]
[1736956715952,3.2078,3339.2,3339.1,0.59894]
[1736956716450,3.2078,3339.2,3338.7,4.7053]
[1736956716451,3.2078,3339.2,3338.7,3.2078]
[1736956716651,0.59906,3338.4,3337.7,1.49796]
[1736956716850,0.59906,3338.4,3337.9,1.398]
[1736956716851,3.2078,3338.4,3337.9,1.398]
[1736956717052,0.59914,3338.0,3337.9,1.398]
[1736956717256,0.59919,3337.7,3337.4,1.8433]
[1736956717453,0.59921,3337.6,3337.3,0.59924]
[1736956717655,0.59923,3337.5,3337.3,0.59924]
[1736956717857,1.7115,3337.9,3337.1,1.8254]
[1736956718054,0.59921,3337.6,3337.4,0.59923]
[1736956718250,3.2078,3337.5,3337.1,1.8254]
[1736956718451,3.80703,3337.5,3337.3,0.59925]
[1736956719050,3.2078,3337.5,3337.1,3.2234]
[1736956719250,3.19960431,3337.4,3336.3,3.2078]
[1736956719450,3.19960431,3337.4,3336.6,1.396]
[1736956719451,3.2078,3337.0,3336.6,1.396]
[1736956719649,3.2078,3337.0,3336.7,0.59936]
[1736956719650,0.59934,3336.9,3336.7,0.59936]
[1736956719851,0.59934,3336.9,3336.6,1.396]
[1736956720056,0.59937,3336.7,3336.6,1.396]
[1736956720260,0.59937,3336.7,3336.4,3.73411]
[1736956720454,3.2078,3337.0,3336.4,3.1347]
[1736956720757,0.59935,3336.8,3336.5,0.5994]
[1736956721052,0.59935,3336.8,3336.4,3.1347]
[1736956721053,3.2078,3337.0,3336.4,3.1347]
[1736956721258,3.80713,3337.0,3336.5,1.396]
[1736956721446,3.2078,3337.0,3336.5,1.396]
[1736956721650,0.59936,3336.8,3336.6,1.396]
[1736956721847,3.2078,3337.0,3336.6,1.396]
[1736956721848,0.59937,3336.7,3336.6,1.396]
[1736956722051,3.2078,3337.0,3336.6,1.396]
[1736956722359,0.59937,3336.7,3336.6,1.396]
[1736956723060,3.2078,3337.0,3336.6,1.396]
[1736956723255,0.59937,3336.7,3336.6,1.396]
[1736956723455,0.59936,3336.8,3336.6,1.99539]
[1736956723655,3.80712,3337.0,3336.6,1.396]
[1736956723859,0.59937,3336.7,3336.6,1.396]
[1736956724155,0.59937,3336.7,3336.5,1.99539]
[1736956724356,0.59939,3336.6,3336.5,1.396]
[1736956724557,3.2078,3337.0,3336.5,1.396]
[1736956724760,0.59939,3336.6,3336.5,1.396]
[1736956724961,0.59941,3336.5,3336.3,3.2078]
[1736956725157,0.5994,3336.5,3336.4,1.396]
[1736956725750,0.59942,3336.4,3336.2,0.59945]
[1736956725962,0.5994,3336.5,3336.4,1.396]
[1736956726155,3.8072,3336.6,3336.4,1.396]
[1736956726363,3.2078,3336.6,3336.4,1.396]
[1736956726658,0.5994,3336.5,3336.4,1.396]
[1736956727163,3.2078,3336.6,3336.2,0.59945]
[1736956727561,0.59941,3336.5,3336.3,1.396]
[1736956727861,0.59942,3336.4,3336.3,1.396]
[1736956728456,0.59947,3336.2,3336.0,0.59949]
[1736956728656,0.59947,3336.2,3336.1,1.396]
[1736956728960,2.44401,3336.5,3336.1,1.396]
[1736956729156,1.8446,3336.5,3336.1,1.396]
[1736956729464,3.2078,3336.6,3336.4,0.59942]
[1736956729765,6.84,3337.0,3336.5,1.396]
[1736956730064,3.2078,3337.0,3336.9,0.59933]
[1736956731157,0.59928,3337.2,3337.0,0.5993]
[1736956731363,2.92839669,3337.3,3336.7,0.59935]
[1736956731563,1.8675,3337.2,3336.6,4.9473]
[1736956731858,0.59936,3336.8,3336.6,5.54668]
[1736956732160,0.59936,3336.8,3336.7,1.396]
[1736956734359,0.59938,3336.7,3336.6,0.59938]
[1736956734554,0.59938,3336.7,3336.6,1.397]
[1736956734760,3.80718,3336.7,3336.6,1.397]
[1736956734970,0.59946,3336.2,3336.1,1.7156]
[1736956735261,0.59949,3336.1,3336.0,0.59948]
[1736956735564,0.59946,3336.2,3336.1,1.397]
[1736956735865,0.59946,3336.2,3336.1,0.59948]
[1736956736072,3.2078,3336.3,3335.9,1.397]
[1736956736364,0.59948,3336.1,3336.0,0.59949]
[1736956736764,0.59947,3336.2,3336.0,0.59949]
[1736956736966,0.59949,3336.1,3335.8,10.784]
[1736956737163,0.59929,3337.2,3337.0,0.59931]
[1736956737363,3.2078,3337.5,3335.9,4.39458]
[1736956737364,1.7807,3337.9,3337.1,1.397]
[1736956737669,3.2078,3338.0,3337.9,0.59915]
[1736956738363,3.2078,3338.7,3337.9,3.2078]
[1736956738567,3.2078,3338.7,3338.6,0.59903]
[1736956738765,0.59903,3338.6,3338.4,0.59906]
[1736956738965,3.2078,3338.9,3338.0,43.0938]
[1736956739169,0.59902,3338.7,3338.5,0.59904]
[1736956739469,3.2078,3338.9,3338.5,0.59904]
[1736956739969,3.2078,3338.9,3338.0,43.0938]
[1736956740265,3.2078,3338.9,3338.8,0.59899]
[1736956740458,3.80678,3338.9,3338.8,1.396]
[1736956741368,3.2078,3338.9,3338.8,1.396]
[1736956741672,2.37967,3339.0,3338.8,1.99499]
[1736956741865,1.7807,3339.0,3338.8,1.396]
[1736956742064,0.59903,3338.6,3338.4,0.59905]
[1736956742265,0.59904,3338.6,3338.5,1.396]
[1736956742574,8.18578048,3338.9,3338.5,1.396]
[1736956742770,8.18578048,3338.9,3338.3,3.2078]
[1736956742771,0.43903894,3338.8,3338.6,1.396]
[1736956742968,0.59901,3338.7,3338.6,1.396]
[1736956743171,4.81466494,3338.7,3337.8,3.2078]
[1736956743365,0.59913,3338.1,3337.9,0.59915]
[1736956743573,1.03816894,3338.1,3337.9,0.59915]
[1736956743873,1.03816894,3338.1,3338.0,1.396]
[1736956744073,0.43903894,3338.1,3338.0,1.396]
[1736956744374,0.43903894,3338.1,3338.0,1.99514]
[1736956744667,0.43903894,3338.4,3338.0,1.396]
[1736956744871,0.43903894,3338.4,3337.6,10.791]
[1736956744872,0.59908,3338.4,3338.1,1.9951]
[1736956745072,0.43903894,3338.5,3338.1,1.9951]
[1736956745276,0.43903894,3338.5,3337.6,10.791]
[1736956745471,0.59912,3338.2,3337.9,0.59914]
[1736956745773,3.2078,3338.6,3337.7,2.89398]
[1736956745973,0.59907,3338.4,3338.2,0.59909]
[1736956746571,1.03748458,3338.4,3338.2,0.59909]
[1736956746875,0.59908,3338.3,3338.2,0.59909]
[1736956747071,0.59908,3338.3,3338.1,0.59911]
[1736956747473,0.43841458,3338.5,3337.7,1.396]
[1736956747679,0.43841458,3338.5,3338.2,0.5991]
[1736956747680,0.59907,3338.4,3338.2,0.5991]
[1736956748179,0.43841458,3338.5,3337.7,1.396]
[1736956748478,0.59908,3338.4,3337.8,0.59917]
[1736956748679,0.59908,3338.4,3337.7,2.89397]
[1736956748876,0.59908,3338.4,3338.2,0.59909]
[1736956749177,0.43841458,3338.5,3338.2,0.59909]
[1736956749381,0.59908,3338.3,3338.2,0.59909]
[1736956749570,0.59908,3338.3,3338.1,0.59911]
[1736956749768,3.8069,3338.2,3338.1,1.394]
[1736956749969,6.01771458,3338.2,3337.8,0.59915]
[1736956750175,0.59916,3337.9,3337.7,0.59918]
[1736956750473,3.2078,3337.8,3337.7,0.59919]
[1736956750672,3.64621458,3337.8,3337.7,1.99319]
[1736956751773,3.2078,3338.6,3337.7,4.32239669]
[1736956751976,0.43851852,3338.5,3338.4,0.59906]
[1736956752183,0.43851852,3338.5,3338.4,1.394]
[1736956752581,4.50670591,3338.5,3338.4,1.394]
[1736956752782,0.59912,3338.1,3338.0,40.0]
[1736956752983,0.59912,3338.1,3338.0,1.394]
[1736956753182,0.59914,3338.0,3337.8,0.59917]
[1736956753384,3.2078,3338.3,3337.9,1.99314]
[1736956753685,0.59912,3338.1,3337.9,1.99314]
[1736956753883,0.43851852,3338.2,3337.9,1.99314]
[1736956754080,0.43851852,3338.2,3337.6,10.791]
[1736956754281,0.59926,3337.3,3337.1,3.80709]
[1736956754481,0.59928,3337.2,3337.0,1.394]
[1736956754682,3.64083852,3337.2,3336.7,1.394]
[1736956754887,0.59936,3336.8,3336.7,1.394]
[1736956755383,0.59935,3336.8,3336.7,1.394]
[1736956755584,3.2078,3336.9,3336.4,1.394]
[1736956755784,0.59941,3336.5,3336.3,0.59943]
[1736956755987,3.34989896,3336.8,3336.4,1.394]
[1736956756187,0.5994,3336.6,3336.4,1.394]
[1736956756379,0.5994,3336.6,3336.4,1.99341]
[1736956756780,0.59937,3336.7,3336.5,0.5994]
[1736956756982,3.34989896,3336.8,3336.4,1.394]
[1736956757177,3.2078,3336.9,3336.4,1.394]
[1736956757378,3.2078,3337.1,3336.4,1.394]
[1736956757584,0.59933,3336.9,3336.7,0.59936]
[1736956757784,6.55545166,3337.1,3336.5,0.00494991]
[1736956757989,0.59936,3336.8,3336.6,0.59937]
[1736956758289,6.55545166,3337.1,3336.5,0.00494991]
[1736956758489,0.59935,3336.9,3336.6,0.59939]
[1736956758691,0.59935,3336.9,3336.7,0.59935]
[1736956758886,0.59935,3336.9,3336.5,0.00494991]
[1736956759189,0.59935,3336.9,3336.6,0.59937]
[1736956759490,6.55545166,3337.1,3336.6,0.59937]
[1736956759691,0.59935,3336.9,3336.6,0.59937]
[1736956759986,6.55545166,3337.1,3337.0,0.59931]
[1736956759987,3.34765166,3337.1,3337.0,0.59931]
[1736956760291,0.5993,3337.1,3336.9,0.59932]
[1736956760585,0.59937,3336.7,3336.6,0.59937]
[1736956760781,0.59937,3336.7,3336.5,0.60433991]
[1736956761089,0.49656416,3337.1,3336.5,0.00494991]
[1736956761281,0.59939,3336.6,3336.5,1.39894991]
[1736956761483,0.59939,3336.6,3336.5,0.00494991]
[1736956761788,0.59939,3336.6,3336.5,1.39894991]
[1736956762988,0.59939,3336.6,3336.5,0.00494991]
[1736956765086,3.99741986,3336.6,3336.5,0.00494991]
[1736956765496,4.48277088,3336.6,3336.5,0.00494991]
[1736956765688,3.99741986,3336.6,3336.5,0.00494991]
[1736956766288,3.99741986,3336.6,3336.5,0.60434991]
[1736956766796,3.39802986,3336.6,3336.5,0.60434991]
[1736956767091,1.8041,3336.7,3336.5,0.00494991]
[1736956767591,5.0083,3336.9,3336.5,0.00494991]
[1736956767797,0.59936,3336.8,3336.6,0.59937]
[1736956767994,3.79013436,3336.8,3336.7,0.59937]
[1736956768190,3.79014436,3336.8,3336.7,0.59937]
[1736956768396,3.19078436,3336.8,3336.6,1.394]
[1736956768788,0.59937,3336.7,3336.6,1.394]
[1736956768989,0.59937,3336.7,3336.6,1.99339]
[1736956769490,3.79014436,3336.8,3336.7,0.59937]
[1736956769689,0.59937,3336.7,3336.6,1.99338]
[1736956769893,3.79014436,3336.8,3336.7,0.59937]
[1736956770085,0.59937,3336.7,3336.6,1.99338]
[1736956770290,3.19078436,3336.8,3336.7,0.59937]
[1736956770598,3.79014436,3336.8,3336.7,0.59937]
[1736956770988,0.59937,3336.7,3336.6,1.99338]
[1736956771188,0.59937,3336.7,3336.6,1.394]
[1736956771390,0.59938,3336.6,3336.5,0.00494991]
[1736956771598,2.32618,3336.6,3336.5,0.00494991]
[1736956771799,5.46821166,3336.6,3336.5,0.00494991]
[1736956772199,5.95326265,3336.6,3336.5,0.00494991]
[1736956772690,5.95296235,3336.6,3336.5,0.00494991]
[1736956772896,5.46821166,3336.6,3336.5,0.00494991]
[1736956773292,3.14203166,3336.6,3336.5,0.00494991]
[1736956773500,9.05634153,3336.9,3336.6,0.59938]
[1736956773799,3.77251726,3336.8,3336.7,0.59937]
[1736956774093,3.77250726,3336.8,3336.5,0.00494991]
[1736956774296,0.59937,3336.7,3336.6,0.59938]
[1736956774696,3.17315726,3336.8,3336.5,0.00494991]
[1736956774893,3.17315726,3336.8,3336.7,0.59937]
[1736956775192,3.77250726,3336.8,3336.6,4.06847]
[1736956775400,3.77251726,3336.8,3336.6,4.06847]
[1736956775594,3.77251726,3336.8,3336.5,0.00494991]
[1736956775595,0.59938,3336.6,3336.5,0.00494991]
[1736956775997,3.93600408,3336.6,3336.5,0.00494991]
[1736956776695,7.59540408,3336.6,3336.5,0.00494991]
[1736956777095,8.08076082,3336.6,3336.5,0.00494991]
[1736956777294,3.93600408,3336.6,3336.5,0.00494991]
[1736956778092,4.4216932,3336.6,3336.5,0.00494991]
[1736956778697,3.93600408,3336.6,3336.5,0.00494991]
[1736956778900,0.59938,3336.6,3336.5,0.60434991]
[1736956779201,0.59938,3336.6,3336.5,0.00494991]
[1736956782999,3.7190734,3336.6,3336.5,0.00494991]
[1736956783205,0.48563343,3336.6,3336.5,0.60434991]
[1736956783506,0.59937,3336.7,3336.6,0.59938]
[1736956784002,0.59938,3336.6,3336.5,0.60433991]
[1736956784202,0.48563343,3336.8,3336.5,0.00494991]
[1736956784606,0.59938,3336.6,3336.5,0.60433991]
[1736956784795,0.59938,3336.6,3336.5,0.00494991]
[1736956787098,6.06827003,3336.6,3336.5,0.00494991]
[1736956787298,4.27561775,3336.6,3336.5,0.00494991]
[1736956787806,1.08501343,3336.6,3336.5,0.00494991]
[1736956788104,0.48563343,3336.8,3336.5,0.00494991]
[1736956788404,0.59936,3336.7,3336.6,0.59938]
[1736956788601,0.48563343,3336.8,3336.6,1.8731]
[1736956788800,1.08499343,3336.8,3336.7,0.59936]
[1736956789202,0.59936,3336.7,3336.6,2.47246]
[1736956789403,0.48563343,3336.8,3336.6,1.8731]
[1736956789804,0.59936,3336.7,3336.6,2.47247]
[1736956790307,0.59936,3336.7,3336.6,1.8731]
[1736956790903,0.59936,3336.7,3336.6,2.47248]
[1736956791107,0.59936,3336.7,3336.6,1.8731]
[1736956791410,0.59936,3336.7,3336.6,3.2661]
[1736956791605,0.48563343,3336.8,3336.5,0.00494991]
[1736956791812,0.59936,3336.7,3336.6,1.393]
[1736956792006,2.76391914,3336.8,3336.5,0.00494991]
[1736956792308,0.59938,3336.6,3336.5,0.00494991]
[1736956792510,1.08501343,3336.6,3336.5,0.00494991]
[1736956792707,4.51721526,3336.6,3336.5,0.00494991]
[1736956795104,9.51721526,3336.6,3336.5,0.00227412]
[1736956795509,4.51721526,3336.6,3336.5,0.00227412]
[1736956795814,0.59955,3335.7,3335.6,1.393]
[1736956796305,0.59958,3335.5,3335.4,3.6119]
[1736956797113,0.48563343,3335.7,3335.6,0.59955]
[1736956797114,0.59956,3335.7,3335.6,0.59955]
[1736956797307,0.48563343,3335.8,3335.4,5.0049]
[1736956797508,0.59957,3335.6,3335.5,0.59957]
[1736956797911,1.08519343,3335.7,3335.6,0.59956]
[1736956798210,1.08518343,3335.7,3335.6,0.59956]
[1736956798412,0.48563343,3335.7,3335.6,0.59956]
[1736956798602,9.07573912,3335.9,3335.5,2.27828571]
[1736956798808,9.07573912,3335.9,3335.8,0.59953]
[1736956799108,9.59016849,3335.9,3335.8,0.59953]
[1736956799305,9.59016849,3335.9,3335.4,3.6119]
[1736956799613,9.67525912,3335.9,3335.5,41.393]
[1736956799911,0.59953,3335.8,3335.6,1.99255]
[1736956800116,3.2078,3335.9,3335.6,1.99255]
[1736956800306,3.2078,3335.9,3335.6,1.393]
[1736956800615,3.2078,3336.3,3335.6,1.393]
[1736956800810,10.882,3339.5,3335.7,1.8037]
[1736956801013,1.6981,3338.1,3335.7,1.8037]
[1736956801307,3.41787343,3337.1,3337.0,0.59931]
[1736956801504,3.41787343,3337.1,3337.0,4.12161]
[1736956801702,0.59918,3337.8,3337.5,0.59922]
[1736956801906,0.50537428,3338.2,3337.2,3.2078]
[1736956802211,0.59919,3337.7,3337.6,3.2078]
[1736956802711,0.50537428,3338.0,3337.3,40.0]
[1736956803003,0.59921,3337.6,3337.3,40.59926]
[1736956803211,0.50537428,3338.1,3337.3,40.0]
[1736956803403,3.73595796,3354.3,3337.3,40.0]
[1736956803706,2.01373195,3346.6,3337.3,40.0]
[1736956804305,3.2078,3338.4,3337.3,43.2078]
[1736956804808,1.7901,3338.3,3337.3,43.2078]
[1736956805204,2.42798755,3338.3,3337.3,43.2078]
[1736956805408,2.42798755,3338.3,3337.5,0.59921]
[1736956805409,0.59914,3337.9,3337.5,0.59921]
[1736956805711,0.59916,3337.8,3337.6,1.392]
[1736956805908,1.23703755,3337.9,3337.6,1.99119]
[1736956806209,1.7901,3338.3,3337.7,3.2078]
[1736956806411,2.38917,3338.3,3337.6,1.392]
[1736956806609,3.26793071,3338.2,3337.9,0.59913]
[1736956806904,1.75,3338.4,3337.7,1.392]
[1736956807106,1.7901,3338.9,3337.7,1.392]
[1736956807107,1.7901,3338.9,3338.0,3.2078]
[1736956807313,3.2078,3339.2,3339.0,0.59894]
[1736956807611,3.2078,3339.2,3338.4,4.70542]
[1736956807612,3.2078,3339.2,3338.8,1.456]
[1736956807814,1.75,3339.1,3338.8,1.456]
[1736956808006,2.34894,3339.1,3338.8,1.456]
[1736956808306,1.75,3339.1,3339.0,0.59895]
[1736956809010,1.8778,3339.3,3338.8,1.456]
[1736956809211,1.8778,3339.3,3339.2,0.59891]
[1736956809612,3.2078,3339.7,3338.9,1.49742]
[1736956809801,3.2078,3339.7,3339.5,0.59884]
[1736956810307,3.18265472,3339.6,3339.5,0.59886]
[1736956814006,3.25162654,3339.9,3339.8,0.5988]
[1736956814202,1.8778,3340.0,3339.9,0.59878]
[1736956814407,1.7928,3340.1,3340.0,0.59877]
[1736956814912,3.30536747,3340.1,3340.0,0.59877]
[1736956815112,3.2078,3340.6,3339.7,3.2078]
[1736956815307,3.2078,3340.6,3340.5,0.59868]
[1736956815507,3.0332,3340.9,3339.9,3.2078]
[1736956815508,3.2078,3340.8,3339.9,3.2078]
[1736956815711,2.81175518,3340.5,3339.6,1.455]
[1736956816020,3.2078,3340.3,3339.6,1.455]
[1736956816511,3.47408964,3340.2,3340.1,0.59874]
[1736956816710,0.59866,3340.6,3340.1,0.83824]
[1736956816918,3.80646,3340.7,3340.1,0.2395]
[1736956817116,3.47408964,3340.5,3340.3,0.59871]
[1736956817317,3.16917947,3340.6,3340.1,0.479]
[1736956817514,3.2078,3340.7,3340.1,0.479]
[1736956817711,0.59871,3340.4,3340.1,0.479]
[1736956817912,3.2078,3340.7,3340.1,0.479]
[1736956817913,3.76783947,3340.6,3340.3,0.5987]
[1736956818118,3.16917947,3340.6,3340.1,0.479]
[1736956818615,0.59873,3340.2,3340.1,0.479]
[1736956818814,0.59873,3340.2,3340.1,0.7783]
[1736956819117,3.32626277,3340.2,3340.1,0.7783]
[1736956819318,3.2078,3340.3,3340.1,0.7783]
[1736956819515,3.2078,3340.3,3340.2,0.59873]
[1736956819711,3.2078,3340.3,3340.2,4.70099115]
[1736956819913,3.2078,3340.3,3340.2,5.88639115]
[1736956821511,3.2078,3340.3,3340.2,2.92526115]
[1736956821712,3.2078,3340.3,3340.2,3.52399115]
[1736956822113,3.2078,3340.3,3340.2,2.92526115]
[1736956822312,3.2078,3340.3,3340.2,3.52399115]
[1736956822617,3.2078,3340.3,3340.2,2.92526115]
[1736956822914,3.2078,3340.3,3340.2,3.52399115]
[1736956823312,3.80651,3340.3,3340.2,2.92526115]
[1736956823716,3.2078,3340.3,3340.2,2.92526115]
[1736956823918,3.2078,3340.3,3340.2,3.52399115]
[1736956824418,3.2078,3340.3,3340.2,2.92526115]
[1736956824811,3.2078,3340.3,3340.2,3.52399115]
[1736956825012,3.2078,3340.3,3340.2,2.92526115]
[1736956825217,3.2078,3340.3,3340.2,3.52399115]
[1736956826916,2.71148,3341.5,3340.2,3.52399115]
[1736956826917,1.2152,3341.5,3340.8,1.49655]
[1736956827117,4.70372,3342.3,3341.3,2.92526115]
[1736956827118,1.1823,3341.6,3341.3,2.92526115]
[1736956827514,4.03646804,3341.5,3341.3,2.92526115]
[1736956827714,3.43796804,3341.5,3341.3,2.92526115]
[1736956827925,3.43796804,3341.5,3341.4,0.59852]
[1736956828222,0.5985,3341.5,3341.1,3.80636]
[1736956828424,0.59854,3341.3,3341.1,6.73162115]
[1736956828721,3.3036046,3341.5,3341.1,6.13306115]
[1736956829425,1.1823,3341.6,3341.5,0.5985]
[1736956829623,1.2005,3341.8,3341.5,6.13306115]
[1736956829816,1.2005,3341.8,3341.7,0.59846]
[1736956830126,4.90070799,3341.8,3341.7,0.59846]
[1736956830417,4.30226799,3341.8,3341.7,0.59846]
[1736956830622,3.17376799,3341.8,3341.7,0.59846]
[1736956830917,1.2347,3342.1,3341.8,0.59843]
[1736956831127,1.2347,3342.1,3341.6,0.2394]
[1736956831128,3.33987866,3342.0,3341.9,3.52369115]
[1736956831321,1.2347,3342.1,3341.7,1.2197]
[1736956831619,0.59846,3341.7,3341.6,0.2394]
[1736956832127,3.74272634,3341.7,3341.6,0.2394]
[1736956832320,4.2268963,3341.7,3341.6,0.2394]
[1736956832517,0.5986,3340.9,3340.8,1.454]
[1736956832718,0.59861,3340.9,3340.8,0.59862]
[1736956832918,1.98080905,3341.3,3340.7,7.29876115]
[1736956833121,0.48442905,3341.3,3340.7,7.29876115]
[1736956833318,0.59859,3341.0,3340.9,0.5986]
[1736956833525,0.59859,3341.0,3340.9,0.59859]
[1736956833715,3.20367003,3341.2,3341.1,0.59857]
[1736956833922,3.80222003,3341.2,3341.1,0.59857]
[1736956834218,3.20367003,3341.3,3341.1,2.92526115]
[1736956834418,3.20435064,3341.2,3341.1,3.52383115]
[1736956834728,4.4014,3341.8,3341.5,0.59849]
[1736956834729,0.59849,3341.6,3341.5,0.59849]
[1736956834924,3.2078,3341.8,3341.1,6.13306115]
[1736956835222,3.20435064,3341.7,3341.6,3.80628]
[1736956835628,0.59844,3341.8,3341.7,0.59846]
[1736956835827,0.59846,3341.7,3341.6,3.80627]
[1736956836022,0.59846,3341.7,3341.3,0.59853]
[1736956836023,0.59852,3341.4,3341.3,0.59853]
[1736956836220,3.69263075,3342.1,3341.3,0.59853]
[1736956836221,0.59851,3341.5,3341.3,0.59853]
[1736956836423,3.36129699,3341.4,3341.3,0.59853]
[1736956836719,5.19167699,3341.6,3341.4,0.5985]
[1736956837027,3.2078,3342.5,3341.5,2.92526115]
[1736956837224,0.59836,3342.3,3342.1,0.59838]
[1736956837422,3.28859699,3342.2,3342.1,0.59839]
[1736956837628,1.2455,3342.4,3342.0,2.92526115]
[1736956837828,2.32887584,3342.4,3342.2,0.59836]
[1736956838129,1.49563,3342.9,3342.7,0.59828]
[1736956838130,0.59826,3342.9,3342.7,0.59828]
[1736956838334,1.2455,3343.1,3343.0,0.59823]
[1736956838626,0.68954818,3343.6,3342.8,4.38926115]
[1736956838827,1.2455,3343.6,3343.4,2.92526115]
[1736956839127,2.4358,3343.8,3343.4,3.52341115]
[1736956839128,0.59811,3343.7,3343.4,3.52341115]
[1736956839323,1.2408,3343.8,3343.4,2.92526115]
[1736956839627,3.428505,3343.7,3343.4,2.92526115]
[1736956839830,0.59814,3343.6,3343.4,2.92526115]
[1736956840131,4.026645,3343.5,3343.4,2.92526115]
[1736956840628,0.59814,3343.5,3343.4,2.92526115]
[1736956841424,3.71500025,3343.5,3343.4,2.92526115]
[1736956841624,3.71500025,3343.5,3342.7,2.45]
[1736956841625,0.59826,3342.9,3342.7,2.45]
[1736956841820,3.11686025,3343.5,3342.7,3.04827]
[1736956842025,0.59824,3343.0,3342.7,3.04827]
[1736956842229,0.59825,3342.9,3342.7,3.04827]
[1736956842430,0.59826,3342.8,3342.7,1.2214]
[1736956842630,0.59828,3342.7,3342.6,4.38926115]
[1736956842833,3.40902078,3342.8,3342.2,15.5439]
[1736956843027,0.59835,3342.3,3342.2,0.2992]
[1736956843333,0.59832,3342.5,3342.3,0.59835]
[1736956843628,3.17099524,3342.7,3342.5,0.59831]
[1736956843930,1.1755,3343.1,3342.6,6.73136115]
[1736956844130,0.59827,3342.8,3342.6,6.13306115]
[1736956844437,3.96490653,3342.8,3342.6,6.73135115]
[1736956844727,1.1755,3343.1,3342.6,6.13306115]
[1736956844928,0.59828,3342.7,3342.6,6.13306115]
[1736956845626,0.59828,3342.7,3342.6,2.92526115]
[1736956846633,3.96949,3343.2,3342.6,2.92526115]
[1736956846634,1.1955,3343.2,3342.6,2.92526115]
[1736956846934,6.19449,3343.8,3343.6,0.59812]
[1736956847125,3.2078,3343.8,3343.5,2.92526115]
[1736956847533,3.2078,3343.8,3343.5,3.16446115]
[1736956848022,3.80589,3343.8,3343.6,0.59812]
[1736956848229,3.2078,3343.8,3343.6,0.59812]
[1736956848432,3.2078,3343.8,3343.5,3.16446115]
[1736956848626,3.8059,3343.8,3343.5,3.76259115]
[1736956849232,3.41364687,3343.7,3343.5,3.16446115]
[1736956849427,3.41364687,3343.7,3343.6,0.59812]
[1736956849632,0.59808,3343.9,3343.7,0.5981]
[1736956850233,3.37067897,3344.1,3343.5,0.2392]
[1736956850433,0.59812,3343.6,3343.5,0.2392]
[1736956851327,3.76621656,3343.6,3343.5,0.5382]
[1736956851527,5.42801616,3343.6,3343.5,0.5382]
[1736956851728,4.24951616,3343.6,3343.5,0.5382]
[1736956851937,4.24962353,3343.6,3343.5,0.5382]
[1736956852234,8.65163754,3343.6,3342.7,2.92526115]
[1736956852537,8.65163754,3343.6,3342.6,1.2156]
[1736956852538,4.70332,3343.2,3342.4,4.38926115]
[1736956852830,0.59832,3342.5,3342.4,4.38926115]
[1736956853037,0.59832,3342.5,3342.4,5.13716115]
[1736956853636,0.59832,3342.5,3342.4,3.91246115]
[1736956854033,0.59832,3342.5,3342.4,1.2265]
[1736956854234,3.86576471,3342.5,3342.4,1.2265]
[1736956854642,4.35005652,3342.5,3342.4,1.2265]
[1736956855141,0.59832,3342.6,3342.5,0.59831]
[1736956855437,1.08290952,3342.6,3342.5,2.92526115]
[1736956855736,1.08290952,3342.6,3342.5,4.12196115]
[1736956855935,0.5983,3342.6,3342.5,4.12196115]
[1736956856538,3.7599646,3342.6,3342.5,1.1967]
[1736956856735,4.24457412,3342.6,3342.5,1.1967]
[1736956857037,1.08290952,3342.6,3342.5,1.1967]
[1736956857238,0.5983,3342.6,3342.5,1.1967]
[1736956858635,3.78439722,3342.6,3342.5,1.1967]
[1736956858839,4.26900674,3342.6,3342.5,1.1967]
[1736956859939,0.59832,3342.5,3342.4,1.2265]
[1736956860133,1.08292952,3342.5,3342.4,1.2265]
[1736956860341,4.23462507,3342.5,3342.4,1.2265]
[1736956860728,4.23462507,3342.5,3341.5,3.2078]
[1736956860729,2.992,3342.1,3340.7,2.92526115]
[1736956860956,0.59862,3340.8,3340.7,2.92526115]
[1736956861337,0.59864,3340.7,3340.6,1.1973]
[1736956861634,0.59864,3340.7,3340.6,4.12256115]
[1736956861946,0.59864,3340.7,3340.6,5.27636115]
[1736956862438,3.94031722,3340.7,3340.6,2.3511]
[1736956863037,0.59882,3339.7,3339.6,4.16846115]
[1736956863346,0.59882,3339.7,3339.6,42.92526115]
[1736956863543,3.2078,3340.2,3339.6,42.92526115]
[1736956863840,0.59881,3339.8,3339.6,3.52409115]
[1736956864242,3.44735213,3339.7,3339.6,4.72179115]
[1736956864443,3.44735213,3339.7,3339.6,4.60196115]
[1736956864638,3.44735213,3339.7,3339.6,1.6767]
[1736956864842,3.80662,3339.7,3339.6,1.6767]
[1736956865141,12.08370134,3339.7,3339.6,1e-05]
[1736956865534,0.59905,3338.5,3338.2,0.59909]
[1736956865738,3.2078,3339.0,3338.1,4.18326115]
[1736956866035,0.59909,3338.2,3338.1,4.18326115]